Cogmind - Beta 10.1 @@@ ROGUE MODE // 2020.09.26 @ 22:35:04 // Winter2019/RPGLIKE Player: HOTSOUP Result: Self-destructed Performance ------------- Evolutions (1) 500 Regions Visited (4) 800 Robots Destroyed (11) 55 Value Destroyed (213) 213 Prototype IDs (2) 40 Alien Tech Used (0) 0 Bonus (-548) -548 TOTAL SCORE: 1060 Bonus ------- Friendly Fire -548 Cogmind --------- Core Integrity 450/900 Matter 300/300 Energy 100/100 System Corruption 2% Temperature Cool (94) Movement Core (50) Location -9/Storage Parts ------- > --- POWER (1) -------- (None) > --- PROPULSION (1) --- (None) > --- UTILITY (3) ------ (None) > --- WEAPON (1) ------- (None) > --- INVENTORY (0) ---- (None) Peak State ------------ > --- POWER ------------ Deuterium Engine > --- PROPULSION ------- Cesium-ion Thruster > --- UTILITY ---------- Signal Interpreter > --- WEAPON ----------- Mining Claw > --- INVENTORY -------- (None) [Rating: 8] Favorites ----------- Power Deuterium Engine Engine Deuterium Engine Propulsion Cesium-ion Thruster Flight Unit Cesium-ion Thruster Utility Signal Interpreter Processor Signal Interpreter Weapon Mining Claw Energy Gun EM Pulse Gun Slashing Weapon Mining Claw Build | -11 -10 -10 -9 -9 ------- Run | Scr Mat Min Mat Sto Slots Evolved 2 | . . . . 2 Power . | . . . . . Propulsion . | . . . . . Utility 2 | . . . . 2 Weapon . | . . . . . Parts Attached 6 | 1 3 2 . . Power 1 | . . 1 . . Engine 1 | . . 1 . . Core . | . . . . . Reactor . | . . . . . Propulsion 2 | . 1 1 . . Treads . | . . . . . Leg . | . . . . . Wheel . | . . . . . Hover . | . . . . . Flight 2 | . 1 1 . . Utility 1 | . 1 . . . Device . | . . . . . Storage . | . . . . . Processor 1 | . 1 . . . Hackware . | . . . . . Protection . | . . . . . Artifact . | . . . . . Weapon 2 | 1 1 . . . Energy Gun 1 | 1 . . . . Energy Cannon . | . . . . . Ballistic Gun . | . . . . . Ballistic Cannon . | . . . . . Launcher . | . . . . . Special Weapon . | . . . . . Impact Weapon . | . . . . . Slashing Weapon 1 | . 1 . . . Piercing Weapon . | . . . . . Special Melee Weapon . | . . . . . Unidentified Prototypes . | . . . . . Parts Lost 1 | . . . 1 . Power . | . . . . . Propulsion 1 | . . . 1 . Utility . | . . . . . Weapon . | . . . . . Highest Loss Streak 1 | . . . 1 . Average Slot Usage (%) 55 | . 33 75 62 33 Flight 13 | . 2 25 12 . Processor 17 | . 6 25 25 16 Energy Gun 7 | . 20 . . . Slashing Weapon 17 | . 4 25 25 16 Naked Turns 1 | . . . . 1 Heaviest Build 2 | 2 2 2 2 2 Greatest Support 6 | 3 4 6 6 3 Greatest Overweight (x) . | . . . . . Average Overweight (x) . | . . . . . Largest Inventory Capacity . | . . . . . Average Capacity . | . . . . . Most Carried . | . . . . . Average Carried . | . . . . . Final Capacity . | . . . . . Final Carried . | . . . . . Class Distribution -------------------- 100% | Hacker-Mutant Dominant Class ---------------- Hacker-Mutant | -10/Materials Hacker-Mutant | -10/Mines Hacker-Mutant | -9/Materials Hacker-Mutant | -9/Storage Resources | -11 -10 -10 -9 -9 ----------- Run | Scr Mat Min Mat Sto Matter Collected 260 | 210 30 20 . . Remotely . | . . . . . Salvage Created 231 | . 78 13 90 50 Parts 36 | . 12 4 12 8 Haulers Intercepted 2 | . 1 . . 1 Recyclers Shooed 2 | . . 2 . . Parts Field Recycled . | . . . . . Retrieved Matter . | . . . . . Parts Self-Destructed . | . . . . . Prevented . | . . . . . Kills | -11 -10 -10 -9 -9 ------- Run | Scr Mat Min Mat Sto Combat Hostiles Destroyed 5 | . 2 . 2 1 Melee 3 | . . . 2 1 Guns 2 | . 2 . . . Classes Destroyed 6 | . 3 1 1 1 Builder 1 | . . . 1 . Tunneler 1 | . . 1 . . Hauler 2 | . 1 . . 1 Operator 1 | . 1 . . . Grunt 4 | . 2 . 2 . Sentry 1 | . . . . 1 Thug 1 | . . 1 . . Best Kill Streak 3 | . 2 1 3 1 Combat Bots Only 2 | . 2 . 2 1 Max Kills in Single Turn 1 | . 1 1 1 1 Gunslinging . | . . . . . Exploded . | . . . . . Melee 1 | . . . 1 1 Uniques/NPCs Destroyed . | . . . . . Combat | -11 -10 -10 -9 -9 -------- Run | Scr Mat Min Mat Sto Damage Taken 899 | . 34 402 337 126 Core 832 | . 28 372 310 122 Absorbed by Shields . | . . . . . Redirected to Core 211 | . 16 97 86 12 Core Remaining (%) 82 | 100 . 64 . . Volleys Fired 7 | . 7 . . . Largest 1 | . 1 . . . Hottest 40 | . 40 . . . Shots Fired 7 | . 7 . . . Gun 7 | . 7 . . . Cannon . | . . . . . Launcher . | . . . . . Special . | . . . . . Kinetic . | . . . . . Thermal . | . . . . . Explosive . | . . . . . Electromagnetic 7 | . 7 . . . Robot Hit Streak 5 | . 5 . . . Robot Miss Streak 1 | . 1 . . . Penetration Max . | . . . . . Secondary Targets . | . . . . . Shots Hit Robots 29 | . 9 12 5 3 Core Hits 12 | . 5 2 3 2 Critical Hits . | . . . . . Critical Kills . | . . . . . Critical Parts Destroyed . | . . . . . Melee Attacks 56 | . 8 25 18 5 Impact . | . . . . . Slashing 56 | . 8 25 18 5 Piercing . | . . . . . Sneak Attacks 14 | . 2 10 1 1 Combat Hostiles . | . . . . . Follow-up Attacks . | . . . . . Damage Inflicted 1276 | . 249 731 171 125 Guns 82 | . 82 . . . Cannons . | . . . . . Explosions . | . . . . . Melee 1194 | . 167 731 171 125 Ramming . | . . . . . Kinetic . | . . . . . Thermal . | . . . . . Explosive . | . . . . . Electromagnetic 82 | . 82 . . . Impact . | . . . . . Slashing 1194 | . 167 731 171 125 Piercing . | . . . . . Highest Corruption 2 | . . . . 2 Average Corruption 2 | . . . . 2 Corruption Purged . | . . . . . Effects 4 | . . . . 4 Message Errors 2 | . . . . 2 Heat Flow Errors 1 | . . . . 1 Data Loss (minor) 1 | . . . . 1 Overload Shots . | . . . . . Overflow Damage 213 | . 32 181 . . Projectiles . | . . . . . Explosions . | . . . . . Melee 213 | . 32 181 . . Knockbacks . | . . . . . Impact . | . . . . . Kinetic . | . . . . . Secondary . | . . . . . Self-Inflicted Damage . | . . . . . Shots . | . . . . . Rammed . | . . . . . Targets Rammed . | . . . . . Kicked . | . . . . . Crushed . | . . . . . Highest Temperature 119 | . 15 . . 119 Average Temperature 36 | . 8 . . 106 Received Heat Transfer 228 | . 18 12 171 27 Siege Activations . | . . . . . Robots Corrupted . | . . . . . Combat Hostiles . | . . . . . Parts Fried . | . . . . . Impact Corruptions . | . . . . . Robots Melted . | . . . . . Combat Hostiles . | . . . . . Parts Melted . | . . . . . Heat Transferred . | . . . . . Parts Sabotaged . | . . . . . Parts Stolen . | . . . . . Parts Stripped . | . . . . . Power Chain Reactions . | . . . . . Missiles Intercepted . | . . . . . Alert | -11 -10 -10 -9 -9 ------- Run | Scr Mat Min Mat Sto Peak Influence 146 | . 95 56 146 143 Initial 61 | . . 36 21 61 Average 50 | . 28 47 78 103 Maximum Alert Level . | . . . . . Low Security (%) 100 | 100 100 100 100 100 Level 1 . | . . . . . Level 2 . | . . . . . Level 3 . | . . . . . Level 4 . | . . . . . Level 5 . | . . . . . High Security . | . . . . . Max Security . | . . . . . Squads Dispatched 2 | . 1 1 . . Investigation 1 | . . 1 . . Extermination . | . . . . . Reinforcement 1 | . 1 . . . Assault . | . . . . . Garrison . | . . . . . Intercept . | . . . . . Construction Impeded . | . . . . . Haulers Reinforced . | . . . . . Stealth | -11 -10 -10 -9 -9 --------- Run | Scr Mat Min Mat Sto Distress Signals 3 | . 1 . 1 1 Communications Jammed . | . . . . . Distress Signals . | . . . . . Times Spotted 43 | . 5 11 24 3 Peak Tracking Total 14 | . 3 5 14 2 Tactical Retreats 7 | . . 5 2 . Traps | -11 -10 -10 -9 -9 ------- Run | Scr Mat Min Mat Sto Traps Triggered 3 | . . . . 3 Indirectly . | . . . . . Trap Hack Attempts . | . . . . . Triggered . | . . . . . Disarmed . | . . . . . Reprogrammed . | . . . . . Reused . | . . . . . Traps Extracted . | . . . . . Installed . | . . . . . Triggered . | . . . . . Machines | -11 -10 -10 -9 -9 ---------- Run | Scr Mat Min Mat Sto Machines Disabled . | . . . . . Max in Single Turn . | . . . . . Machines Sabotaged . | . . . . . Garrisons Compromised . | . . . . . Overloaded Fab Kills . | . . . . . Fab Network Shutdowns . | . . . . . Hacking | -11 -10 -10 -9 -9 --------- Run | Scr Mat Min Mat Sto Machines Accessed 6 | . 3 1 1 1 Terminals 5 | . 3 . 1 1 Fabricators . | . . . . . Repair Stations . | . . . . . Recycling Units . | . . . . . Scanalyzers . | . . . . . Garrison Access . | . . . . . Total Hacks 25 | . 17 1 3 4 Successful 19 | . 12 1 3 3 Failed 6 | . 5 . . 1 Catastrophic . | . . . . . Database Lockouts . | . . . . . Manual 21 | . 14 . 3 4 Terminals 24 | . 17 . 3 4 Fabricators . | . . . . . Repair Stations . | . . . . . Recycling Units . | . . . . . Scanalyzers . | . . . . . Garrison Access . | . . . . . Terminal Hacks 8 | . 4 1 . 3 Prototype ID Bank 1 | . 1 . . . Open Door 1 | . . 1 . . Branch Access Points 1 | . 1 . . . Alert Level 1 | . . . . 1 Unreport Threat 2 | . . . . 2 Recall Investigation 1 | . 1 . . . Zone Layout 1 | . 1 . . . Fabricator Hacks . | . . . . . Repair Station Hacks . | . . . . . Recycling Unit Hacks . | . . . . . Scanalyzer . | . . . . . Garrison Access Hacks . | . . . . . Unauthorized Hacks 9 | . 6 . 3 . Terminals 9 | . 6 . 3 . Track 3 | . 2 . 1 . Botnet 4 | . 3 . 1 . Operators 2 | . 1 . 1 . Fabricators . | . . . . . Repair Stations . | . . . . . Recycling Units . | . . . . . Scanalyzers . | . . . . . Garrison Access . | . . . . . Data Cores Recovered . | . . . . . Used . | . . . . . Hacking Detections 4 | . 3 . . 1 Full Trace Events 1 | . 1 . . . Feedback Events . | . . . . . Feedback Blocked . | . . . . . Robot Schematics Acquired . | . . . . . Robots Built . | . . . . . Matter . | . . . . . Time . | . . . . . Total Robot Build Rating . | . . . . . Part Schematics Acquired . | . . . . . Parts Built . | . . . . . Matter . | . . . . . Time . | . . . . . Total Part Build Rating . | . . . . . Parts Repaired . | . . . . . Time . | . . . . . Parts Recycled . | . . . . . Recycled Matter . | . . . . . Retrieved Matter . | . . . . . Retrieved Components . | . . . . . Parts Scanalyzed . | . . . . . Part Schematics Acquired . | . . . . . Parts Damaged . | . . . . . Bothacking | -11 -10 -10 -9 -9 ------------ Run | Scr Mat Min Mat Sto Used RIF Installer . | . . . . . Robots Hacked . | . . . . . Non-combat . | . . . . . Combat . | . . . . . Robot Hacks Applied . | . . . . . Relay Couplers Released . | . . . . . Robots Rewired . | . . . . . Allies Hacked . | . . . . . Hacks Repelled . | . . . . . Allies | -11 -10 -10 -9 -9 -------- Run | Scr Mat Min Mat Sto Total Allies . | . . . . . Largest Group . | . . . . . Highest-Rated Group . | . . . . . Highest-Rated Ally . | . . . . . Total Orders . | . . . . . Ally Attacks . | . . . . . Total Damage . | . . . . . Kills . | . . . . . Allies Corrupted . | . . . . . Allies Melted . | . . . . . Intel | -11 -10 -10 -9 -9 ------- Run | Scr Mat Min Mat Sto Robot Analysis Total . | . . . . . Derelict Logs Recovered 2 | . . 2 . . Drone Launches . | . . . . . Drone Recoveries . | . . . . . Exploration | -11 -10 -10 -9 -9 ------------- Run | Scr Mat Min Mat Sto Turns Passed 836 | 15 283 335 121 82 Spaces Moved 1083 | 26 254 587 138 78 Core 356 | 26 219 . 33 78 Treads . | . . . . . Legs . | . . . . . Wheels . | . . . . . Hover . | . . . . . Flight 727 | . 35 587 105 . Fastest Speed 40 | 50 40 40 40 50 Average Speed 43 | 50 48 40 42 50 Slowest Speed 50 | 50 50 40 50 50 Overloaded Moves . | . . . . . Propulsion Burnouts . | . . . . . Robots Hopped 2 | . . 2 . . Cave-ins Triggered . | . . . . . Exploration Rate (%) 32 | 3 35 82 23 18 Regions Visited 4 Branch Regions 2 Pre-discovered Areas . | . . . . . Known Exits Taken 3 | . 1 1 1 . Unknown Exits Taken 1 | 1 . . . . Scrap Searched 1 | . . 1 . . Spaces Dug 11 | . 4 3 4 . Terrain Destroyed 11 | . 4 3 4 . Melee 11 | . 4 3 4 . Projectile . | . . . . . AOE . | . . . . . Terrain Rammed . | . . . . . Walls Destroyed . | . . . . . Machines Disabled . | . . . . . Actions | -11 -10 -10 -9 -9 --------- Run | Scr Mat Min Mat Sto Total 1321 | 26 388 634 163 110 Wait 139 | . 114 14 5 6 Move 1075 | 25 253 582 137 78 Hop 2 | . . 2 . . Pick Up . | . . . . . Fast Attach 6 | 1 3 2 . . Attach . | . . . . . Detach . | . . . . . Swap . | . . . . . Drop 3 | . 1 2 . . Fire 7 | . 7 . . . Melee 56 | . 8 25 18 5 Ram . | . . . . . Kick . | . . . . . Crush . | . . . . . Escape Stasis 15 | . . . . 15 Rewire . | . . . . . Trap . | . . . . . Miscellaneous 18 | . 2 7 3 6 Route ------- -11/Scrapyard -10/Materials (discovered 2 exits: *Min x2) -10/Mines (discovered 2 exits: *Mat x2) -9/Materials -9/Storage History --------- Turn | Location | Event 6 | -11/Scrapyard | Discovered new exit (range 16) 16 | -11/Scrapyard | Entered Materials 273 | -10/Materials | Identified exit to Mines 299 | -10/Materials | Entered Mines 305 | -10/Mines | Met a Derelict shopkeep closing up shop 332 | -10/Mines | Build established: Hacker-Mutant 423 | -10/Mines | A weapon hastily lodged in a ceiling crevice suddenly fell to the ground 437 | -10/Mines | Discovered new exit (range 14) 442 | -10/Mines | Identified exit to Materials 527 | -10/Mines | Assembled infested the area 530 | -10/Mines | Core integrity fell below 50% 634 | -10/Mines | Entered Materials 635 | -9/Materials | Identified exit to Storage 636 | -9/Materials | Reached level 2 677 | -9/Materials | Core integrity fell below 50% 743 | -9/Materials | Core integrity fell below 20% 755 | -9/Materials | Entered Storage 755 | -9/Storage | Upgraded with Utility slot (x1) 757 | -9/Storage | Reached level 3 758 | -9/Storage | Upgraded with Utility slot (x1) 837 | -9/Storage | Self-destructed Last Messages --------------- 00830_ Field strength at 28. 00831_ Field strength at 22. 00831_ K-01 Serf collects debris. 00832_ Field strength at 16. 00832_ W-16 Scout sends out distress signal. 00833_ Field strength at 10. 00834_ Field strength at 4. 00835_ System corrupted: Heat flow error (+144). 00835_ Stasis field depleted. 00836_ Triggered Blade Trap. 00836_ Massive razor-sharp blades shoot up from within the floor. 00836_ Mining Claw severed. 00836_ Signal Interpreter severed. 00837_ Connecting with Terminal... >>Alert(Check) Current Alert Level: Low Security >>Alert(Purge) Purged threat record, alert level lowered. >>Alert(Purge) No threats on record. Map ----- +----------------------------------------------------+ | ??????????# ## #????? | | ??????????# # #????? | | ??????????# ## ! #????? | | ??????????# # []= #????? | | ?????????## ######+!!##????? | | ###+###### !%] #????? | | ^ #####* #????? | | #???# #????? | | #???# #????? | | ####### #???# #????? | | ????????###+###???# #????? | | ?????????? ????# #????? | | ????????# """ ??# #????? | | ????????# """ #?# #????? | | ????????# """ #?# ##+#####? | | ????????# #?# # #? | | ????????# """ #?# # #? | | ????????# """ #?# + #? | | ????????????? #?# # #? | | ????????????? #?# # #? | | ?????????????#####?# # #? | | ????????? ! /??????# ##+###### | | ????????? #### # # | | ???????????? [ + # "" # | | ????????????????# # T" # | | ???????????+##+## ^ #@"" # | | ??????? + # | | ??????????#/######## # # | | ???????????????????# # # | | ???????????????????# # # | | ???????????????????# # # | | ???????????????????# #Y#### | | ??????????????????? ###??? | | ??????????????????##+## #????? | | ??????????????????????# #????? | | ??????????????????????# #????? | | ??????????????????????? ????? | | ??????????????????????? "????? | | ??????????????????????? #????? | | ??????????????????????? ?????? | | ??????????????????????? ?????? | | ??????????????????????? ?????? | | ??????????????????????? ?????? | | ?????????????????????????????? | | ?????????????????????????????? | | ?????????????????????????????? | | ?????????????????????????????? | | ?????????????????????????????? | | ?????????????????????????????? | | ?????????????????????????????? | +----------------------------------------------------+ Best States ------------- Heat Dissipation 25 Energy Generation 5 Energy Capacity 100 Matter Stores 300 Matter Capacity 300 Sight Range 16 Terrain Scan Density 10 Evasion (%) 62 Offensive Hacking 25 Defensive Hacking 10 Item Schematics ----------------- None Robot Schematics ------------------ None Fabricated ------------ Nothing Alien Tech Used ----------------- None Achievements -------------- None Challenges ------------ None RPGLIKE | -11 -10 -10 -9 -9 --------- Run | Scr Mat Min Mat Sto Levels Raised 2 | . . . 1 1 XP Earned 6720 | 3000 335 500 1700 1185 XP Spent 5700 | 2700 . . . 3000 Upgrades 17 | 6 . . . 11 Utility Slot 2 | . . . . 2 Core Integrity 6 | . . . . 6 Hack Attack % 5 | 4 . . . 1 Hack Defense % 2 | 2 . . . . KI Damage % 1 | . . . . 1 TH Damage % 1 | . . . . 1 Protomatter Created 221 | . 90 52 37 42 Integrity Restored 382 | . 28 156 72 126 Core 382 | . 28 156 72 126 Protomatter Decayed 95 | . 80 15 . . Game ------ Seed DeuteriumArchitectMachine Manual? 0 Play Time 00:14:35 Cumulative 67.0 hours Start 2020.09.26 @ 22:22:18 End 2020.09.26 @ 22:35:04 Sessions 1 Manual Loads 0 Difficulty Rogue Special Mode Winter2019/RPGLIKE Game No. 84 Rogue 60 Adventurer 22 Explorer 2 Win Type - Total 1 Types 1/0/0/0/0/0/0/0/0 Lore% 42 Gallery% 45 Achievement% 39 Wizard Run 0 Options --------- ASCII 0 Keyboard 0 Movement Numpad Keybinds 0 Fullscreen 1 Font 14/SmallcapsGlow Map View 84x54 Tactical HUD 1 Map Filters NONE Filters NONE Steam 1 RUN: 61c665c8-bbba-48e1-99e1-a6eb9642e920